Cogmind - Beta 16 @@@ ROGUE MODE // 2026.02.01 @ 17:47:44 Player: luckinvolved Result: Destroyed by D-53 Grenadier with Mini Grenade Launcher Performance ------------- Evolutions (0) 0 Regions Visited (2) 400 Robots Destroyed (29) 145 Value Destroyed (426) 426 Prototype IDs (0) 0 Alien Tech Used (0) 0 Bonus (0) 0 TOTAL SCORE: 971 Bonus ------- None Cogmind --------- Core Integrity 0/250 Matter 300/300 Energy 87/100 System Corruption 2% Temperature Cool (0) Movement Core (50) Location -10/Mines Parts ------- > --- POWER (1) -------- (None) > --- PROPULSION (2) --- (None) > --- UTILITY (2) ------ Improved Heat Sink > --- WEAPON (2) ------- Assault Rifle > --- INVENTORY (5) ---- Light Treads Structural Scanner EM Shotgun Medium Laser Grenade Launcher Peak State ------------ > --- POWER ------------ Light Nuclear Core > --- PROPULSION ------- Light Treads Light Treads > --- UTILITY ---------- Improved Heat Sink Medium Storage Unit > --- WEAPON ----------- EM Shotgun Assault Rifle > --- INVENTORY -------- Light Nuclear Core Light Treads Structural Scanner EM Shotgun Medium Laser Medium Laser Light Assault Rifle Light Assault Rifle Grenade Launcher Mining Laser [Rating: 13] Favorites ----------- Power Light Nuclear Core Engine Light Ion Engine Power Core Light Nuclear Core Propulsion Light Treads Treads Light Treads Utility Medium Storage Unit Device Improved Heat Sink Storage Medium Storage Unit Weapon Assault Rifle Energy Gun EM Shotgun Ballistic Gun Assault Rifle Special Weapon Mining Laser Build | -11 -10 -10 ------- Run | Yrd Mat Min Slots Evolved . | . . . Power . | . . . Propulsion . | . . . Utility . | . . . Weapon . | . . . Parts Attached 14 | 7 7 . Power 2 | 1 1 . Engine 1 | 1 . . Core 1 | . 1 . Reactor . | . . . Propulsion 2 | 2 . . Treads 2 | 2 . . Leg . | . . . Wheel . | . . . Hover . | . . . Flight . | . . . Utility 4 | 2 2 . Device 2 | 1 1 . Storage 2 | 1 1 . Processor . | . . . Hackware . | . . . Protection . | . . . Artifact . | . . . Weapon 6 | 2 4 . Energy Gun 3 | 1 2 . Energy Cannon . | . . . Ballistic Gun 2 | 1 1 . Ballistic Cannon . | . . . Launcher . | . . . Special Weapon 1 | . 1 . Impact Weapon . | . . . Slashing Weapon . | . . . Piercing Weapon . | . . . Special Melee Weapon . | . . . Unidentified Prototypes . | . . . Parts Lost 5 | . 2 3 Power 2 | . 1 1 Propulsion 1 | . . 1 Utility 1 | . 1 . Weapon 1 | . . 1 Highest Loss Streak 3 | . 2 3 To Critical Strikes . | . . . Average Backups 9 | 3 9 10 Power . | . . 1 Propulsion 1 | 1 1 2 Utility . | . 1 1 Weapon 6 | 1 6 6 Tool/Special . | . . . Unused Backups 12 | . 5 7 Power 2 | . 1 1 Propulsion 4 | . 2 2 Utility 2 | . 1 1 Weapon 4 | . 1 3 Tool/Special . | . . . Average Slot Usage (%) 97 | . 97 100 Engine 4 | . 4 . Core 8 | . 7 14 Treads 28 | . 28 28 Device 13 | . 13 14 Storage 14 | . 14 14 Energy Gun 6 | . 5 14 Ballistic Gun 18 | . 19 14 Special Weapon 2 | . 3 . Peak Build Rating 13 | 7 13 13 Average Rating 10 | 5 10 12 On Entrance 6 | . 7 13 Avg Prop Armor Cover (%) . | . . . Naked Turns . | . . . Heaviest Build 21 | 13 21 21 Greatest Support 40 | 40 40 40 Greatest Overweight (x) . | . . . Average Overweight (x) . | . . . Largest Inventory Capacity 10 | 8 10 10 Average Capacity 9 | 7 9 9 Most Carried 10 | 6 10 10 Average Carried 9 | 3 9 9 Final Capacity 10 | 8 10 5 Final Carried 10 | 6 10 5 Class Distribution -------------------- 100% | Mutant Dominant Class ---------------- Mutant | -10/Materials Mutant | -10/Mines Resources | -11 -10 -10 ----------- Run | Yrd Mat Min Matter Collected 564 | 299 250 15 Remotely . | . . . Salvage Created 787 | 140 535 112 Parts 68 | 16 50 2 Haulers Intercepted 2 | . 2 . Recyclers Shooed 3 | 1 2 . Parts Field Recycled . | . . . Retrieved Matter . | . . . Parts Self-Destructed . | . . . Prevented . | . . . Parts Restored . | . . . Kills | -11 -10 -10 ------- Run | Yrd Mat Min Combat Hostiles Destroyed 14 | . 11 3 Guns 14 | . 11 3 Classes Destroyed 7 | 2 5 . Builder 4 | . 4 . Tunneler 5 | 4 1 . Hauler 2 | . 2 . Recycler 2 | 1 . 1 Watcher 2 | . 2 . Swarmer 8 | . 5 3 Grunt 6 | . 6 . Best Kill Streak 4 | 4 3 3 Combat Bots Only 3 | . 3 3 Max Kills in Single Turn 1 | 1 1 1 Gunslinging . | . . . Exploded . | . . . Melee . | . . . Uniques/NPCs Destroyed . | . . . Combat | -11 -10 -10 -------- Run | Yrd Mat Min Hostile Shots Fired 65 | . 36 29 Missed 18 | . 12 6 Hits 47 | . 24 23 Projectile 47 | . 24 23 AOE 6 | . . 6 Critical Strikes 1 | . . 1 Damage Taken 757 | . 306 451 Core 277 | . 71 206 Absorbed by Shields . | . . . Core Remaining (%) 100 | 100 . . Volleys Fired 99 | 14 79 6 Largest 2 | 2 2 2 Hottest 100 | 70 100 65 Shots Fired 161 | 28 122 11 Gun 133 | 28 94 11 Cannon . | . . . Launcher . | . . . Special 28 | . 28 . Kinetic 83 | 14 63 6 Thermal 55 | 14 41 . Explosive . | . . . Electromagnetic 23 | . 18 5 Robot Hit Streak 12 | 6 12 5 Robot Miss Streak 3 | 2 3 2 Penetration Max . | . . . Secondary Targets 2 | . 1 1 Max Gunslinging Chain 1 | . 1 1 Shots Hit Robots 86 | 16 63 7 Core Hits 41 | 6 32 3 Critical Kills . | . . . Critical Parts Destroyed . | . . . Critical Strikes 1 | . 1 . Burn 1 | . 1 . Melee Attacks . | . . . Impact . | . . . Slashing . | . . . Piercing . | . . . Sneak Attacks . | . . . Combat Hostiles . | . . . Follow-up Attacks . | . . . Damage Inflicted 1162 | 213 857 92 Guns 1027 | 213 724 90 Cannons . | . . . Explosions . | . . . Melee . | . . . Ramming 39 | . 37 2 Kinetic 589 | 136 411 42 Thermal 285 | 77 208 . Explosive . | . . . Electromagnetic 249 | . 201 48 Impact . | . . . Slashing . | . . . Piercing . | . . . Highest Corruption 2 | . 2 2 Average Corruption 1 | . 1 2 Corruption Purged . | . . . Corruption Blocked . | . . . Effects 7 | . 5 2 Matter Fused 1 | . 1 . Heat Flow Errors 1 | . 1 . Parts Rejected 1 | . 1 . Data Loss (minor) 1 | . 1 . Data Loss (major) 2 | . . 2 Alerts 1 | . 1 . Overload Shots . | . . . Overflow Damage . | . . . Projectiles . | . . . Explosions . | . . . Melee . | . . . Knockbacks 1 | . 1 . Impact 1 | . 1 . Kinetic . | . . . Secondary . | . . . Self-Inflicted Damage . | . . . Shots . | . . . Rammed 9 | . 9 . Targets Rammed 12 | . 11 1 Kicked . | . . . Crushed 3 | . 2 1 Highest Temperature 248 | 90 248 14 Average Temperature 34 | 36 31 14 Received Heat Transfer 174 | . 129 45 Siege Activations . | . . . Martial Activations . | . . . Shielding Activations . | . . . Robots Disrupted . | . . . Combat Hostiles . | . . . Robots Corrupted . | . . . Combat Hostiles . | . . . Parts Fried . | . . . Impact Corruptions . | . . . Robots Melted . | . . . Combat Hostiles . | . . . Parts Melted 1 | . 1 . Heat Transferred 829 | 222 607 . Parts Sabotaged . | . . . Parts Stolen . | . . . Parts Stripped . | . . . Power Chain Reactions . | . . . Alert | -11 -10 -10 ------- Run | Yrd Mat Min Maximum Alert Level . | . . . Low Security (%) 100 | 100 100 100 Level 1 . | . . . Level 2 . | . . . Level 3 . | . . . Level 4 . | . . . Level 5 . | . . . High Security . | . . . Max Security . | . . . Peak Influence 100 | 10 84 100 Initial 27 | . . 27 Average 21 | 1 18 71 Influence Increases 472 | 25 359 88 Destroy 0b10 Robot/C 280 | . 220 60 Destroy 0b10 Robot/NC 75 | 25 45 5 Destroy Leader 68 | . 58 10 Successful Hack 18 | . 5 13 Destroy Structure 16 | . 16 . Lose Combat Pursuer 15 | . 15 . Influence Decreases 457 | 25 288 144 Entered New Map 44 | . . 44 Time Decay 383 | 25 288 70 Lost Part 30 | . . 30 Squads Dispatched . | . . . Investigation . | . . . Extermination . | . . . Reinforcement . | . . . Assault . | . . . Garrison . | . . . Intercept . | . . . Searches Triggered . | . . . Construction Impeded . | . . . Haulers Reinforced . | . . . Active Scanning Responses . | . . . Cargo Convoy Interrupts . | . . . Stealth | -11 -10 -10 --------- Run | Yrd Mat Min Distress Signals 1 | . 1 . Communications Jammed . | . . . Distress Signals . | . . . Times Spotted 30 | . 23 7 Peak Tracking Total 4 | . 4 4 Tactical Retreats 1 | . 1 . Traps | -11 -10 -10 ------- Run | Yrd Mat Min Traps Triggered 2 | . 2 . Indirectly . | . . . Trap Hack Attempts . | . . . Triggered . | . . . Disarmed . | . . . Reprogrammed . | . . . Reused . | . . . Traps Extracted . | . . . Installed . | . . . Triggered . | . . . Machines | -11 -10 -10 ---------- Run | Yrd Mat Min Machines Disabled . | . . . Max in Single Turn . | . . . Machines Repaired . | . . . Machines Dismantled . | . . . Machines Sabotaged . | . . . Overloaded Fab Kills . | . . . Hacking | -11 -10 -10 --------- Run | Yrd Mat Min Machines Accessed 6 | . 5 1 Terminals 6 | . 5 1 Fabricators . | . . . Repair Stations . | . . . Recycling Units . | . . . Scanalyzers . | . . . Garrison Access . | . . . Total Hacks 19 | . 16 3 Successful 11 | . 9 2 Failed 8 | . 7 1 Catastrophic 1 | . 1 . Database Lockouts . | . . . Manual 21 | . 18 3 Terminals 19 | . 16 3 Fabricators . | . . . Repair Stations . | . . . Recycling Units . | . . . Scanalyzers . | . . . Garrison Access . | . . . Terminal Hacks 6 | . 4 2 Part Schematic 2 | . 1 1 Robot Analysis 4 | . 3 1 Fabricator Hacks . | . . . Repair Station Hacks . | . . . Recycling Unit Hacks . | . . . Scanalyzer . | . . . Garrison Access Hacks . | . . . Unauthorized Hacks 5 | . 5 . Terminals 5 | . 5 . Botnet 4 | . 4 . Skim 1 | . 1 . Fabricators . | . . . Repair Stations . | . . . Recycling Units . | . . . Scanalyzers . | . . . Garrison Access . | . . . Data Cores Recovered . | . . . Used . | . . . Hacking Detections 6 | . 5 1 Full Trace Events 1 | . 1 . Feedback Events . | . . . Feedback Blocked . | . . . Robot Schematics Acquired . | . . . Robots Built . | . . . Authchips . | . . . Time . | . . . Total Robot Build Rating . | . . . Part Schematics Acquired 2 | . 1 1 Parts Built . | . . . Authchips . | . . . Time . | . . . Total Part Build Rating . | . . . Part Studies Acquired . | . . . Parts Repaired . | . . . Time . | . . . Parts Recycled . | . . . Recycled Matter . | . . . Retrieved Matter . | . . . Retrieved Components . | . . . Parts Scanalyzed . | . . . Part Schematics Acquired . | . . . Parts Damaged . | . . . Bothacking | -11 -10 -10 ------------ Run | Yrd Mat Min Used RIF Installer . | . . . Robots Hacked . | . . . Non-combat . | . . . Combat . | . . . Robot Hacks Applied . | . . . Relay Couplers Released . | . . . Fabnet Peak Effective % . | . . . Robots Rewired . | . . . Allies Hacked . | . . . Hacks Repelled . | . . . Allies | -11 -10 -10 -------- Run | Yrd Mat Min Total Allies . | . . . Largest Group . | . . . Highest-Rated Group . | . . . Highest-Rated Ally . | . . . Total Orders . | . . . Ally Attacks . | . . . Total Damage . | . . . Kills . | . . . Allies Corrupted . | . . . Allies Melted . | . . . Intel | -11 -10 -10 ------- Run | Yrd Mat Min Active Infowar (turns) 552 | 24 528 . Seismic 552 | 24 528 . Robot Analysis Total 4 | . 3 1 Derelict Logs Recovered . | . . . Drone Launches . | . . . Drone Recoveries . | . . . Exploration | -11 -10 -10 ------------- Run | Yrd Mat Min Turns Passed 2048 | 185 1705 158 Spaces Moved 987 | 82 815 90 Core 8 | 3 . 5 Treads 979 | 79 815 85 Legs . | . . . Wheels . | . . . Hover . | . . . Flight . | . . . Fastest Speed 50 | 50 160 50 Average Speed 159 | 155 160 153 Slowest Speed 160 | 160 160 160 Overloaded Moves . | . . . Propulsion Burnouts . | . . . Robots Hopped . | . . . Potential Cave-ins . | . . . Cave-ins Triggered . | . . . Exploration Rate (%) 43 | 4 99 26 Regions Visited 2 Branch Regions 1 Pre-discovered Areas . | . . . Known Exits Taken . | . . . Unknown Exits Taken 2 | 1 1 . Scrap Searched . | . . . Spaces Dug 10 | . 10 . Terrain Destroyed 15 | . 15 . Melee . | . . . Projectile 15 | . 15 . AOE . | . . . Terrain Rammed . | . . . Walls Destroyed . | . . . Machines Disabled . | . . . Actions | -11 -10 -10 --------- Run | Yrd Mat Min Total 1244 | 108 1037 99 Wait 103 | . 103 . Move 985 | 81 814 90 Hop . | . . . Pick Up 18 | 6 12 . Fast Attach 9 | 7 2 . Attach 1 | . 1 . Detach . | . . . Swap 7 | . 7 . Drop 10 | . 8 2 Fire 99 | 14 79 6 Melee . | . . . Ram . | . . . Kick . | . . . Crush 12 | . 11 1 Escape Stasis . | . . . Rewire . | . . . Trap . | . . . Miscellaneous . | . . . Route ------- -11/Scrapyard -10/Materials (discovered 6 exits: [*Mat x3] / *Min x2 / [*Sub]) -10/Mines History --------- Turn | Location | Event 2 | -11/Scrapyard | Met Revision 17 22 | -11/Scrapyard | Discovered new exit (range 14) 186 | -11/Scrapyard | Entered Materials 333 | -10/Materials | Build established: Mutant 500 | -10/Materials | Discovered new exit (range 15) 819 | -10/Materials | Discovered new exit (range 15) 940 | -10/Materials | Discovered new exit (range 8) 1105 | -10/Materials | Discovered new exit (range 16) 1424 | -10/Materials | Discovered new exit (range 4) 1720 | -10/Materials | Discovered new exit (range 6) 1891 | -10/Materials | Entered Mines 2021 | -10/Mines | Assembled infested the area 2045 | -10/Mines | Core integrity fell below 50% 2048 | -10/Mines | Core integrity fell below 20% 2049 | -10/Mines | Destroyed by D-53 Grenadier with Mini Grenade Launcher Last Messages --------------- >>Schematic(Hcp. Storage Unit) Downloading schematic... Hcp. Storage Unit Rating: 1 Schematic downloaded. 01968_ System corrupted: Substantial component data lost. 01969_ Crushed R-06 Scavenger. 01969_ R-06 Scavenger destroyed. 01983_ K-01 Serf collects debris. 02006_ System corrupted: Substantial component data lost. 02021_ ALERT: Infestation in the mines, dispatching Demolisher response squad. 02044_ C-45 Heavy ARC bursts open, deploying its payload. 02044_ D-53 Grenadier unfolds itself. 02044_ EM Shotgun destroyed. 02044_ Critical hit (Burn: +37). 02045_ Lgt. Nuclear Core destroyed. 02046_ Dropped Med. Storage Unit. 02047_ Dropped Lgt. Treads. 02047_ Lgt. Treads destroyed. Map ----- +----------------------------------------------------+ | ?????# #????????????????????????????????????? | | ?????# #????????????????????????????????????? | | ?????#### ###????????????????????????????????????? | | ????????# #??????????????????????????????????????? | | ????????# #??????????????????????????????????????? | | ???###### #??????????????????????????????????????? | | ???# #??????????????????????????????????????? | | ???# ######??????????????????????????????????????? | | ???# #???????????????????????????????????????????? | | ???# #???????????????????????????????????????????? | | ???# #???????????????????????????????????????????? | | ???# #???????????????????????????????????????????? | | ???# #???????????????????????????????????????????? | | ???# #???????????????????????????????????????????? | | ???# #???????????????????????????????????????????? | | ???# #???????????????????????????????????????????? | | ???# #???????????????????????????????????????????? | | ??## #???????????????????????????????????????????? | | ?## ##????????????######????????????????????????? | | ?# ##??????????##"YY"##???????????????????????? | | ?# ####??????##!! ][#???????###?????????????? | | ?# ##????## [! ![#??????# ##????????????? | | ?## #???## ####### ##???????????? | | ??## #???# # ##??????????? | | ???## ## ### # * = ##?????????? | | ????# #?###?# %d =![ @ #?????????? | | ????# #?????# $d [ #?????????? | | ????#%########## ### #?????????? | | ????# #### ### #????????????????? | | ????# #?## # ###?# #????????????????? | | ????##### #??###### ##???# #????????????????? | | ????????## #???????###????# ##???????????????? | | ?????????## #########??????# ##??????????????? | | ??????????# ## ##?##### #??????????????? | | ??????????# #?# #??????????????? | | ??????????## ### #??????????????? | | ???????????# ##### ## #??????????????? | | ???????????# #???## ## ##??????????????? | | ???????????# #????####### #### #???????????????? | | ???????????# #??????????# #??# #???????????????? | | ???????????# #??????????# #??## #???????????????? | | ???????????# #?????????? #???? #???????????????? | | ???????????# #?????????? ???? ???????????????? | | ???????????? ????????? ???? ??????????????? | | ???????????? ????????? ????# ??????????????? | | ???????????? ????????# ?????# ?????????????? | | ???????????? ????????## ?????# ?????????????? | | ???????????? ??????????## ??????###????????????? | | ?????????????????????????# ?????????????????????? | | ?????????????????????????? ?????????????????????? | +----------------------------------------------------+ Best States ------------- Heat Dissipation 39 Energy Generation 14 Energy Capacity 160 Matter Stores 300 Matter Capacity 300 Sight Range 16 Terrain Scan Density 10 Evasion (%) 40 Recoil Reduction 2 Item Schematics ----------------- Signal Interpreter | -10/Materials | Hacked Hcp. Storage Unit | -10/Mines | Hacked Robot Schematics ------------------ None Fabricated ------------ Nothing Repaired ---------- Nothing Studied --------- None Alien Tech Used ----------------- None Achievements -------------- None Challenges ------------ None Game ------ Seed DisruptorMetamassArchive Manual? 0 Play Time 00:13:15 Cumulative 167.5 hours Start 2026.02.01 @ 17:35:35 End 2026.02.01 @ 17:47:44 Sessions 1 Manual Loads 0 Difficulty Rogue Special Mode None Game No. 198 Rogue 193 Adventurer 5 Explorer 0 Win Type - Total 5 Types 4/0/0/1/0/0/0/0/0/0 Lore% 48 Gallery% 63 Achievement% 50 Wizard Run 0 Options --------- Layout 0 ASCII 0 Keyboard 1 Movement Vi Keybinds 0 Fullscreen 1 Font 24/Terminus Map View 76x50 Zoom Use 0% Tactical HUD 1 Map Filters NONE Filters NONE Steam 1 RUN: 452002b1-e028-4590-b8ad-5dec92368c34